Cogmind - Beta 10.1 @@@ ROGUE MODE // 2020.09.29 @ 11:57:25 Player: Thyrdor Result: Destroyed by Y-45 Defender with Beam Rifle Performance ------------- Evolutions (1) 500 Regions Visited (2) 400 Robots Destroyed (14) 70 Value Destroyed (316) 316 Prototype IDs (0) 0 Alien Tech Used (0) 0 Bonus (0) 0 TOTAL SCORE: 1286 Bonus ------- None Cogmind --------- Core Integrity 0/400 Matter 295/300 Energy 100/100 System Corruption 0% Temperature Cool (9) Movement Core (550) Ox10 Location -9/Materials Parts ------- > --- POWER (1) -------- (None) > --- PROPULSION (2) --- (None) > --- UTILITY (4) ------ Large Storage Unit Large Storage Unit > --- WEAPON (2) ------- (None) > --- INVENTORY (16) --- Small Storage Unit Medium Storage Unit High-capacity Storage Unit Peak State ------------ > --- POWER ------------ Ion Engine > --- PROPULSION ------- Aluminum Leg Aluminum Leg > --- UTILITY ---------- Large Storage Unit Large Storage Unit > --- WEAPON ----------- Beam Cannon Light Assault Rifle > --- INVENTORY -------- Small Storage Unit Medium Storage Unit [Rating: 7] Favorites ----------- Power Ion Engine Engine Ion Engine Propulsion Aluminum Leg Leg Aluminum Leg Utility Large Storage Unit Storage Large Storage Unit Weapon Light Assault Rifle Energy Gun EM Pulse Gun Energy Cannon Beam Cannon Ballistic Gun Light Assault Rifle Build | -11 -10 -9 ------- Run | Scr Mat Mat Slots Evolved 2 | . . 2 Power . | . . . Propulsion . | . . . Utility 2 | . . 2 Weapon . | . . . Parts Attached 13 | 6 4 3 Power 1 | 1 . . Engine 1 | 1 . . Core . | . . . Reactor . | . . . Propulsion 3 | 2 1 . Treads . | . . . Leg 3 | 2 1 . Wheel . | . . . Hover . | . . . Flight . | . . . Utility 3 | 1 2 . Device . | . . . Storage 3 | 1 2 . Processor . | . . . Hackware . | . . . Protection . | . . . Artifact . | . . . Weapon 6 | 2 1 3 Energy Gun 4 | 1 . 3 Energy Cannon 1 | . 1 . Ballistic Gun 1 | 1 . . Ballistic Cannon . | . . . Launcher . | . . . Special Weapon . | . . . Impact Weapon . | . . . Slashing Weapon . | . . . Piercing Weapon . | . . . Special Melee Weapon . | . . . Unidentified Prototypes . | . . . Parts Lost 10 | . 2 8 Power 1 | . . 1 Propulsion 3 | . 1 2 Utility . | . . . Weapon 6 | . 1 5 Highest Loss Streak 5 | . 1 5 Average Slot Usage (%) 81 | . 92 57 Engine 12 | . 14 8 Leg 21 | . 24 13 Storage 23 | . 24 22 Energy Gun 2 | . 1 4 Energy Cannon 9 | . 11 4 Ballistic Gun 11 | . 14 4 Naked Turns . | . . . Heaviest Build 41 | 12 41 41 Greatest Support 20 | 20 20 20 Greatest Overweight (x) 10 | . 4 10 Average Overweight (x) 1 | . 1 3 Largest Inventory Capacity 16 | 6 16 16 Average Capacity 13 | 5 13 16 Most Carried 5 | 3 4 5 Average Carried 2 | . 2 4 Final Capacity 16 | 6 16 16 Final Carried 4 | . 4 3 Class Distribution -------------------- 100% | Mutant Dominant Class ---------------- Mutant | -10/Materials Mutant | -9/Materials Resources | -11 -10 -9 ----------- Run | Scr Mat Mat Matter Collected 321 | 244 77 . Remotely . | . . . Salvage Created 404 | . 333 71 Parts 29 | . 23 6 Haulers Intercepted 1 | . 1 . Recyclers Shooed . | . . . Parts Field Recycled . | . . . Retrieved Matter . | . . . Parts Self-Destructed . | . . . Prevented . | . . . Kills | -11 -10 -9 ------- Run | Scr Mat Mat Combat Hostiles Destroyed 12 | . 11 1 Guns 5 | . 4 1 Cannons 6 | . 6 . AOE 1 | . 1 . Classes Destroyed 5 | . 3 2 Hauler 1 | . 1 . Watcher 1 | . . 1 Swarmer 6 | . 6 . Grunt 5 | . 5 . Sentry 1 | . . 1 Best Kill Streak 5 | . 5 1 Combat Bots Only 5 | . 5 1 Max Kills in Single Turn 1 | . 1 1 Gunslinging . | . . . Exploded 1 | . 1 . Melee . | . . . Uniques/NPCs Destroyed . | . . . Combat | -11 -10 -9 -------- Run | Scr Mat Mat Damage Taken 1387 | . 420 967 Core 466 | . 63 403 Absorbed by Shields . | . . . Core Remaining (%) 87 | 100 74 . Volleys Fired 62 | 1 33 28 Largest 2 | 2 2 2 Hottest 80 | 60 80 80 Shots Fired 94 | 2 59 33 Gun 76 | 2 44 30 Cannon 18 | . 15 3 Launcher . | . . . Special . | . . . Kinetic 40 | 1 33 6 Thermal 28 | . 15 13 Explosive . | . . . Electromagnetic 26 | 1 11 14 Robot Hit Streak 6 | 1 5 6 Robot Miss Streak 7 | 1 7 3 Penetration Max . | . . . Secondary Targets 3 | . 3 . Max Gunslinging Chain 1 | . 1 . Shots Hit Robots 52 | 1 32 19 Core Hits 27 | . 19 8 Critical Hits 1 | . 1 . Critical Kills . | . . . Critical Parts Destroyed 1 | . 1 . Melee Attacks . | . . . Impact . | . . . Slashing . | . . . Piercing . | . . . Sneak Attacks . | . . . Combat Hostiles . | . . . Follow-up Attacks . | . . . Damage Inflicted 782 | 15 471 296 Guns 475 | 15 199 261 Cannons 244 | . 209 35 Explosions 63 | . 63 . Melee . | . . . Ramming . | . . . Kinetic 147 | . 120 27 Thermal 431 | . 272 159 Explosive . | . . . Electromagnetic 204 | 15 79 110 Impact . | . . . Slashing . | . . . Piercing . | . . . Highest Corruption . | . . . Average Corruption . | . . . Corruption Purged . | . . . Overload Shots . | . . . Overflow Damage . | . . . Projectiles . | . . . Explosions . | . . . Melee . | . . . Knockbacks . | . . . Impact . | . . . Kinetic . | . . . Secondary . | . . . Self-Inflicted Damage . | . . . Shots . | . . . Rammed . | . . . Targets Rammed . | . . . Kicked . | . . . Crushed . | . . . Highest Temperature 126 | 20 120 126 Average Temperature 47 | 15 52 38 Received Heat Transfer 330 | . 24 306 Siege Activations . | . . . Robots Corrupted . | . . . Combat Hostiles . | . . . Parts Fried 2 | . . 2 Impact Corruptions . | . . . Robots Melted . | . . . Combat Hostiles . | . . . Parts Melted . | . . . Heat Transferred 807 | . 444 363 Parts Sabotaged . | . . . Parts Stolen . | . . . Parts Stripped . | . . . Power Chain Reactions 1 | . 1 . Missiles Intercepted . | . . . Alert | -11 -10 -9 ------- Run | Scr Mat Mat Peak Influence 292 | . 292 62 Initial 40 | . . 40 Average 108 | . 152 35 Maximum Alert Level 1 | . 1 . Low Security (%) 79 | 100 67 100 Level 1 20 | . 32 . Level 2 . | . . . Level 3 . | . . . Level 4 . | . . . Level 5 . | . . . High Security . | . . . Max Security . | . . . Squads Dispatched 2 | . 1 1 Investigation 1 | . 1 . Extermination . | . . . Reinforcement 1 | . . 1 Assault . | . . . Garrison . | . . . Intercept . | . . . Construction Impeded 1 | . . 1 Haulers Reinforced . | . . . Stealth | -11 -10 -9 --------- Run | Scr Mat Mat Distress Signals 1 | . . 1 Communications Jammed . | . . . Distress Signals . | . . . Times Spotted 15 | . 11 4 Peak Tracking Total 5 | . 5 2 Tactical Retreats . | . . . Traps | -11 -10 -9 ------- Run | Scr Mat Mat Traps Triggered 1 | . 1 . Indirectly . | . . . Trap Hack Attempts . | . . . Triggered . | . . . Disarmed . | . . . Reprogrammed . | . . . Reused . | . . . Traps Extracted . | . . . Installed . | . . . Triggered . | . . . Machines | -11 -10 -9 ---------- Run | Scr Mat Mat Machines Disabled 1 | . 1 . Max in Single Turn 1 | . 1 . Machines Sabotaged . | . . . Garrisons Compromised . | . . . Overloaded Fab Kills . | . . . Fab Network Shutdowns . | . . . Hacking | -11 -10 -9 --------- Run | Scr Mat Mat Machines Accessed 2 | . 2 . Terminals 2 | . 2 . Fabricators . | . . . Repair Stations . | . . . Recycling Units . | . . . Scanalyzers . | . . . Garrison Access . | . . . Total Hacks 6 | . 6 . Successful 5 | . 5 . Failed 1 | . 1 . Catastrophic . | . . . Database Lockouts . | . . . Manual . | . . . Terminals 6 | . 6 . Fabricators . | . . . Repair Stations . | . . . Recycling Units . | . . . Scanalyzers . | . . . Garrison Access . | . . . Terminal Hacks 5 | . 5 . Record 1 | . 1 . Branch Access Points 1 | . 1 . Emergency Access Points 1 | . 1 . Locate Traps 1 | . 1 . Recall Investigation 1 | . 1 . Fabricator Hacks . | . . . Repair Station Hacks . | . . . Recycling Unit Hacks . | . . . Scanalyzer . | . . . Garrison Access Hacks . | . . . Unauthorized Hacks . | . . . Terminals . | . . . Fabricators . | . . . Repair Stations . | . . . Recycling Units . | . . . Scanalyzers . | . . . Garrison Access . | . . . Data Cores Recovered . | . . . Used . | . . . Hacking Detections 1 | . 1 . Full Trace Events . | . . . Feedback Events . | . . . Feedback Blocked . | . . . Robot Schematics Acquired . | . . . Robots Built . | . . . Matter . | . . . Time . | . . . Total Robot Build Rating . | . . . Part Schematics Acquired . | . . . Parts Built . | . . . Matter . | . . . Time . | . . . Total Part Build Rating . | . . . Parts Repaired . | . . . Time . | . . . Parts Recycled . | . . . Recycled Matter . | . . . Retrieved Matter . | . . . Retrieved Components . | . . . Parts Scanalyzed . | . . . Part Schematics Acquired . | . . . Parts Damaged . | . . . Bothacking | -11 -10 -9 ------------ Run | Scr Mat Mat Used RIF Installer . | . . . Robots Hacked . | . . . Non-combat . | . . . Combat . | . . . Robot Hacks Applied . | . . . Relay Couplers Released . | . . . Robots Rewired . | . . . Allies Hacked . | . . . Hacks Repelled . | . . . Allies | -11 -10 -9 -------- Run | Scr Mat Mat Total Allies . | . . . Largest Group . | . . . Highest-Rated Group . | . . . Highest-Rated Ally . | . . . Total Orders . | . . . Ally Attacks . | . . . Total Damage . | . . . Kills . | . . . Allies Corrupted . | . . . Allies Melted . | . . . Intel | -11 -10 -9 ------- Run | Scr Mat Mat Robot Analysis Total . | . . . Derelict Logs Recovered . | . . . Drone Launches . | . . . Drone Recoveries . | . . . Exploration | -11 -10 -9 ------------- Run | Scr Mat Mat Turns Passed 749 | 62 481 206 Spaces Moved 335 | 51 222 62 Core 27 | 19 . 8 Treads . | . . . Legs 308 | 32 222 54 Wheels . | . . . Hover . | . . . Flight . | . . . Fastest Speed 50 | 50 120 180 Average Speed 172 | 93 173 234 Slowest Speed 550 | 120 240 550 Overloaded Moves . | . . . Propulsion Burnouts . | . . . Robots Hopped . | . . . Cave-ins Triggered . | . . . Exploration Rate (%) 14 | 3 35 6 Regions Visited 2 Branch Regions . Pre-discovered Areas . | . . . Known Exits Taken . | . . . Unknown Exits Taken 2 | 1 1 . Scrap Searched . | . . . Spaces Dug . | . . . Terrain Destroyed 4 | . 4 . Melee . | . . . Projectile . | . . . AOE 4 | . 4 . Terrain Rammed . | . . . Walls Destroyed . | . . . Machines Disabled . | . . . Actions | -11 -10 -9 --------- Run | Scr Mat Mat Total 423 | 63 265 95 Wait . | . . . Move 333 | 50 221 62 Hop . | . . . Pick Up 15 | 6 7 2 Fast Attach . | . . . Attach 12 | 6 3 3 Detach . | . . . Swap 1 | . 1 . Drop . | . . . Fire 62 | 1 33 28 Melee . | . . . Ram . | . . . Kick . | . . . Crush . | . . . Escape Stasis . | . . . Rewire . | . . . Trap . | . . . Miscellaneous . | . . . Route ------- -11/Scrapyard -10/Materials (discovered 3 exits: [*Mat] / Min x2) -9/Materials History --------- Turn | Location | Event 14 | -11/Scrapyard | Discovered new exit (range 15) 63 | -11/Scrapyard | Entered Materials 305 | -10/Materials | Build established: Mutant 485 | -10/Materials | Discovered new exit (range 15) 508 | -10/Materials | Identified exit to Mines 544 | -10/Materials | Entered another Materials area 544 | -9/Materials | Evolved 2 slots: Utility x2 667 | -9/Materials | Lost 3 parts (1n2w) 721 | -9/Materials | Core integrity fell below 50% 740 | -9/Materials | Core integrity fell below 20% 750 | -9/Materials | Destroyed by Y-45 Defender with Beam Rifle Last Messages --------------- 00557_ Acquired Beam Rifle. 00609_ W-16 Scout sends out distress signal. 00613_ W-16 Scout destroyed. 00627_ Beam Cannon destroyed. 00633_ Aluminum Leg destroyed. 00636_ Lgt. Assault Rifle destroyed. 00651_ Y-45 Defender misfires. 00652_ Heat Sink fried. 00652_ Y-45 Defender destroyed. 00677_ Door malfunctions. 00683_ EM Pulse Gun destroyed. 00691_ ALERT: Construction progress impeded, dispatching reinforcements to local area. 00702_ Beam Rifle destroyed. 00703_ Ion Engine destroyed. 00705_ Aluminum Leg destroyed. 00717_ Acquired Spread Laser. 00720_ Spread Laser destroyed. 00721_ U-05 Engineer repairs door. 00742_ M-13 Machinist fits Backup Power I on A-02 Transporter. Map ----- +----------------------------------------------------+ | ???????????????????????????????????????????? | | ???????????????????????????????????????????? | | ???????????????????????????????????????????? | | ???????????????????????????????????????????? | | ???????????????????????????????????????????? | | ?????????????????#?????????????????????????? | | ????????????????? ?????????????????????????? | | ????????????????? ?????????????????????????? | | ????????????????? ?????????????????????????? | | ????????????????? ?????????????????????????? | | ????????????????? ?????????????????????????? | | ????????????????? ?????????????????????????? | | ????????????????# #????????????????????????? | | ?#######????????# #????????????????????????? | | ?# #????????# #????????????????????????? | | ?# """ #????????# #????????????????????????? | | ?# """ #????????# #######??????????????????? | | ?# """ #????????+ #??????????????????? | | ?# #????????# #??????????????????? | | ??###+########### *= ##?????????????????? | | ????# [%= ??????????? | | ????# *#####m########?????????????????? | | ????# %#??# a !#??????????????????????? | | ?####+##+##!#??# r !#??????????????????????? | | # # #??# Y #??????????????????????? | | # # #### aY@#??????????????????????? | | # !!! # ## #??????????????????????? | | # !!! + ## ! #??????????????????????? | | # !!! # ## #??????????????????????? | | # # #######??????????????????????? | | # # # #??????????????????????? | | # # # #??????????????????????? | | ########### # #??????????????????????? | | ??????????# # #??????????????????????? | | ??????????# # #??????????????????????? | | ??????????# # #??????????????????????? | | ??????????# + #??????????????????????? | | ??????????# # #??????????????????????? | | ??????????# # #??????????????????????? | | ??????????# # #??????????????????????? | | ??????????##### #??????????????????????? | | ??????????????# #??????????????????????? | | ??????????????#######??????????????????????? | | ???????????????????????????????????????????? | | ???????????????????????????????????????????? | | ???????????????????????????????????????????? | | ???????????????????????????????????????????? | | ???????????????????????????????????????????? | | ???????????????????????????????????????????? | | ???????????????????????????????????????????? | +----------------------------------------------------+ Best States ------------- Heat Dissipation 28 Energy Generation 10 Energy Capacity 250 Matter Stores 300 Matter Capacity 300 Sight Range 16 Terrain Scan Density 10 Evasion (%) 50 Item Schematics ----------------- None Robot Schematics ------------------ None Fabricated ------------ Nothing Alien Tech Used ----------------- None Achievements -------------- None Challenges ------------ None Game ------ Seed SwarmTrapSuperbattery Manual? 0 Play Time 00:12:02 Cumulative 9.6 hours Start 2020.09.29 @ 11:47:24 End 2020.09.29 @ 11:57:25 Sessions 1 Manual Loads 0 Difficulty Rogue Special Mode None Game No. 26 Rogue 26 Adventurer 0 Explorer 0 Win Type - Total 0 Types 0/0/0/0/0/0/0/0/0 Lore% 4 Gallery% 16 Achievement% 11 Wizard Run 0 Options --------- ASCII 0 Keyboard 0 Movement Mouse Keybinds 0 Fullscreen 1 Font 18/SmallcapsGlow Map View 76x50 Tactical HUD 1 Map Filters NONE Filters NONE Steam 1 RUN: 619881b4-33ff-48bc-936e-9ccb2ab405d2